[Event "Early-Titled-Tuesday-Blitz-September-05-2023"]
[Site "Chess.com"]
[Date "2023.09.05"]
[Round "2"]
[White "Kirill_Klukin"]
[Black "szachuspl"]
[Result "1-0"]
[WhiteElo "2805"]
[BlackElo "2551"]
[TimeControl "180+1"]
[EndTime "8:18:49 PDT"]
[Termination "Kirill_Klukin won by checkmate"]

1. d4 {[%clk 0:02:59.8]} 1... g6 {[%clk 0:02:58.1]} 2. Nf3 {[%clk 0:02:58.2]}
2... Bg7 {[%clk 0:02:58.4]} 3. c4 {[%clk 0:02:55.6]} 3... d6 {[%clk 0:02:58.1]}
4. Nc3 {[%clk 0:02:55.5]} 4... Bg4 {[%clk 0:02:52.3]} 5. Bg5 {[%clk 0:02:33.6]}
5... c5 {[%clk 0:02:49.2]} 6. d5 {[%clk 0:02:04.7]} 6... h6 {[%clk 0:02:40.6]}
7. Bf4 {[%clk 0:02:02.7]} 7... g5 {[%clk 0:02:33.6]} 8. Bd2 {[%clk 0:01:57.3]}
8... Bf5 {[%clk 0:02:28.6]} 9. e4 {[%clk 0:01:56.5]} 9... Bg6 {[%clk 0:02:28.7]}
10. h4 {[%clk 0:01:48.3]} 10... g4 {[%clk 0:02:28.5]} 11. h5 {[%clk 0:01:48.5]}
11... Bh7 {[%clk 0:02:21.4]} 12. Nh4 {[%clk 0:01:36.7]} 12... Nf6 {[%clk
0:02:13]} 13. Bd3 {[%clk 0:01:27.7]} 13... Nbd7 {[%clk 0:02:10.6]} 14. Bf4
{[%clk 0:01:05.5]} 14... Rg8 {[%clk 0:01:51.8]} 15. Nf5 {[%clk 0:00:58.7]} 15...
Bxf5 {[%clk 0:01:45.9]} 16. exf5 {[%clk 0:00:59.6]} 16... Qa5 {[%clk 0:01:43.3]}
17. Qd2 {[%clk 0:00:58.5]} 17... Rh8 {[%clk 0:01:40.8]} 18. a3 {[%clk 0:00:58]}
18... a6 {[%clk 0:01:40.7]} 19. Rb1 {[%clk 0:00:56.4]} 19... Kf8 {[%clk
0:01:37.1]} 20. Kf1 {[%clk 0:00:39.2]} 20... Ne8 {[%clk 0:01:34.2]} 21. Ne4
{[%clk 0:00:30]} 21... Qxd2 {[%clk 0:01:30.7]} 22. Bxd2 {[%clk 0:00:30.9]} 22...
Ne5 {[%clk 0:01:26.7]} 23. Be2 {[%clk 0:00:31.5]} 23... Nf6 {[%clk 0:01:24.5]}
24. Ng3 {[%clk 0:00:27.4]} 24... Nfd7 {[%clk 0:01:20.1]} 25. Bc3 {[%clk
0:00:26.6]} 25... Bf6 {[%clk 0:01:19.4]} 26. Ne4 {[%clk 0:00:25.7]} 26... Kg7
{[%clk 0:01:17.6]} 27. g3 {[%clk 0:00:14.1]} 27... Rab8 {[%clk 0:01:16.8]} 28.
a4 {[%clk 0:00:13.9]} 28... Rhe8 {[%clk 0:01:09.2]} 29. Kg2 {[%clk 0:00:13.9]}
29... Nb6 {[%clk 0:01:04.5]} 30. b3 {[%clk 0:00:14]} 30... Nbd7 {[%clk
0:01:04.5]} 31. Bd2 {[%clk 0:00:11.1]} 31... Rec8 {[%clk 0:00:56.6]} 32. Bf4
{[%clk 0:00:11.5]} 32... b6 {[%clk 0:00:55.8]} 33. Nxf6 {[%clk 0:00:08.1]} 33...
exf6 {[%clk 0:00:52.3]} 34. Rh4 {[%clk 0:00:07.7]} 34... b5 {[%clk 0:00:43.7]}
35. axb5 {[%clk 0:00:07.9]} 35... axb5 {[%clk 0:00:44.1]} 36. cxb5 {[%clk
0:00:08.6]} 36... Rb7 {[%clk 0:00:41.6]} 37. Ra1 {[%clk 0:00:07.9]} 37... Kh7
{[%clk 0:00:32.9]} 38. Ra6 {[%clk 0:00:08.4]} 38... Rb6 {[%clk 0:00:29.5]} 39.
Rxb6 {[%clk 0:00:08.4]} 39... Nxb6 {[%clk 0:00:30.4]} 40. Bxg4 {[%clk
0:00:08.3]} 40... Nxd5 {[%clk 0:00:29.9]} 41. Bf3 {[%clk 0:00:08.6]} 41... Nxf4+
{[%clk 0:00:26.5]} 42. Rxf4 {[%clk 0:00:09.5]} 42... Rb8 {[%clk 0:00:26.8]} 43.
Be2 {[%clk 0:00:08.4]} 43... Kg7 {[%clk 0:00:26.1]} 44. Ra4 {[%clk 0:00:08.6]}
44... Rb7 {[%clk 0:00:24.8]} 45. Ra6 {[%clk 0:00:08.6]} 45... d5 {[%clk
0:00:23.8]} 46. Rd6 {[%clk 0:00:07.9]} 46... d4 {[%clk 0:00:24.2]} 47. Rd5
{[%clk 0:00:07.8]} 47... Nd7 {[%clk 0:00:22.8]} 48. Bc4 {[%clk 0:00:07.7]} 48...
Rc7 {[%clk 0:00:21.2]} 49. f4 {[%clk 0:00:07.9]} 49... Kf8 {[%clk 0:00:18.7]}
50. Rd6 {[%clk 0:00:06.1]} 50... Ke7 {[%clk 0:00:17.9]} 51. Ra6 {[%clk
0:00:06.8]} 51... Rb7 {[%clk 0:00:17.6]} 52. Kf3 {[%clk 0:00:06.8]} 52... Nb6
{[%clk 0:00:17.4]} 53. Ke4 {[%clk 0:00:07]} 53... Nc8 {[%clk 0:00:15.5]} 54. Kd5
{[%clk 0:00:05.3]} 54... Rc7 {[%clk 0:00:15.5]} 55. b6 {[%clk 0:00:04.6]} 55...
Rd7+ {[%clk 0:00:13.8]} 56. Kxc5 {[%clk 0:00:05.1]} 56... d3 {[%clk 0:00:13.7]}
57. Bxd3 {[%clk 0:00:05.1]} 57... Nxb6 {[%clk 0:00:11.8]} 58. Bb5 {[%clk
0:00:03.8]} 58... Rd1 {[%clk 0:00:03.2]} 59. Rxb6 {[%clk 0:00:03.8]} 59... Rg1
{[%clk 0:00:03.1]} 60. Bc4 {[%clk 0:00:03.8]} 60... Rxg3 {[%clk 0:00:02.9]} 61.
Rb7+ {[%clk 0:00:04.6]} 61... Kd8 {[%clk 0:00:03.3]} 62. Rxf7 {[%clk 0:00:05.5]}
62... Rf3 {[%clk 0:00:02.6]} 63. Rxf6 {[%clk 0:00:06]} 63... Rxf4 {[%clk
0:00:03.2]} 64. Rd6+ {[%clk 0:00:06.8]} 64... Kc7 {[%clk 0:00:03.3]} 65. f6
{[%clk 0:00:07.1]} 65... Rf5+ {[%clk 0:00:03.1]} 66. Bd5 {[%clk 0:00:07.9]}
66... Rxh5 {[%clk 0:00:02.6]} 67. f7 {[%clk 0:00:08.5]} 67... Rf5 {[%clk
0:00:02.9]} 68. Rxh6 {[%clk 0:00:09.2]} 68... Kd8 {[%clk 0:00:02.3]} 69. Rh8+
{[%clk 0:00:09.8]} 69... Ke7 {[%clk 0:00:02.9]} 70. Re8+ {[%clk 0:00:10.3]}
70... Kd7 {[%clk 0:00:03.6]} 71. f8=Q {[%clk 0:00:11.1]} 71... Rf7 {[%clk
0:00:01.4]} 72. Qxf7# {[%clk 0:00:11.2]} 1-0

[Event "Early-Titled-Tuesday-Blitz-September-05-2023"]
[Site "Chess.com"]
[Date "2023.09.05"]
[Round "2"]
[White "OparinGrigoriy"]
[Black "wannabe2700"]
[Result "1-0"]
[WhiteElo "2986"]
[BlackElo "2642"]
[TimeControl "180+1"]
[EndTime "8:19:00 PDT"]
[Termination "OparinGrigoriy won by checkmate"]

1. Nc3 {[%clk 0:03:00.9]} 1... e5 {[%clk 0:02:53.7]} 2. e4 {[%clk 0:03:01.1]}
2... Nf6 {[%clk 0:02:53.2]} 3. Bc4 {[%clk 0:02:59.6]} 3... Nxe4 {[%clk
0:02:49.7]} 4. Qh5 {[%clk 0:02:58.3]} 4... Nd6 {[%clk 0:02:49.7]} 5. Bb3 {[%clk
0:02:56.6]} 5... Be7 {[%clk 0:02:47.3]} 6. Qxe5 {[%clk 0:02:56.4]} 6... O-O
{[%clk 0:02:46.7]} 7. Nf3 {[%clk 0:02:46.8]} 7... Bf6 {[%clk 0:02:38.4]} 8. Qf4
{[%clk 0:02:46.5]} 8... Re8+ {[%clk 0:02:33.6]} 9. Kd1 {[%clk 0:02:46.5]} 9...
Nc6 {[%clk 0:02:23.2]} 10. Nd5 {[%clk 0:02:44.2]} 10... Re6 {[%clk 0:02:18.7]}
11. d3 {[%clk 0:02:32.5]} 11... Na5 {[%clk 0:02:16.5]} 12. Nxf6+ {[%clk
0:02:27.2]} 12... Rxf6 {[%clk 0:02:15.8]} 13. Qh4 {[%clk 0:02:27.4]} 13... Nxb3
{[%clk 0:02:03.7]} 14. axb3 {[%clk 0:02:28.3]} 14... h6 {[%clk 0:02:04]} 15. Bd2
{[%clk 0:02:23.1]} 15... Nf5 {[%clk 0:02:01.7]} 16. Qf4 {[%clk 0:02:00.6]} 16...
d5 {[%clk 0:01:46.6]} 17. Bc3 {[%clk 0:01:59.4]} 17... d4 {[%clk 0:01:40.5]} 18.
Nxd4 {[%clk 0:01:57]} 18... c5 {[%clk 0:01:03.6]} 19. Nxf5 {[%clk 0:01:49.3]}
19... Rxf5 {[%clk 0:01:04.5]} 20. Qe3 {[%clk 0:01:47.4]} 20... Rg5 {[%clk
0:01:01.8]} 21. g3 {[%clk 0:01:43]} 21... Be6 {[%clk 0:00:52.8]} 22. h4 {[%clk
0:01:37]} 22... Rf5 {[%clk 0:00:51.8]} 23. Re1 {[%clk 0:01:34.2]} 23... Qd5
{[%clk 0:00:49]} 24. f4 {[%clk 0:01:28.4]} 24... Qg2 {[%clk 0:00:39.9]} 25. Rg1
{[%clk 0:01:22.4]} 25... Qh3 {[%clk 0:00:39.9]} 26. Kd2 {[%clk 0:01:16.5]} 26...
Re8 {[%clk 0:00:36]} 27. Rae1 {[%clk 0:01:15.5]} 27... Bd7 {[%clk 0:00:28.5]}
28. Qf2 {[%clk 0:01:15.4]} 28... Rxe1 {[%clk 0:00:27.3]} 29. Rxe1 {[%clk
0:01:16.3]} 29... Be6 {[%clk 0:00:22.2]} 30. Be5 {[%clk 0:01:09.6]} 30... f6
{[%clk 0:00:20]} 31. Bd6 {[%clk 0:01:06.4]} 31... Rd5 {[%clk 0:00:19.7]} 32.
Bxc5 {[%clk 0:01:05.1]} 32... b6 {[%clk 0:00:19.5]} 33. Bd4 {[%clk 0:01:02.6]}
33... Bf5 {[%clk 0:00:19.9]} 34. b4 {[%clk 0:00:58.4]} 34... Kh7 {[%clk
0:00:20]} 35. Bc3 {[%clk 0:00:54.6]} 35... Qg4 {[%clk 0:00:20.1]} 36. Kc1 {[%clk
0:00:54.6]} 36... Qg6 {[%clk 0:00:20.3]} 37. Qf3 {[%clk 0:00:51.7]} 37... Rd7
{[%clk 0:00:18.3]} 38. b5 {[%clk 0:00:49.1]} 38... Bg4 {[%clk 0:00:18.6]} 39.
Qe4 {[%clk 0:00:47.2]} 39... Bf5 {[%clk 0:00:19.1]} 40. Qg2 {[%clk 0:00:41.2]}
40... h5 {[%clk 0:00:19.4]} 41. b3 {[%clk 0:00:34.3]} 41... Qf7 {[%clk
0:00:12.4]} 42. Kb2 {[%clk 0:00:33]} 42... Qg6 {[%clk 0:00:10]} 43. Qf2 {[%clk
0:00:29.4]} 43... Qf7 {[%clk 0:00:09.9]} 44. Qf3 {[%clk 0:00:29.2]} 44... Rd5
{[%clk 0:00:09.4]} 45. Re7 {[%clk 0:00:26.5]} 45... Qxe7 {[%clk 0:00:08.2]} 46.
Qxd5 {[%clk 0:00:27.1]} 46... Bg4 {[%clk 0:00:07.4]} 47. Bd4 {[%clk 0:00:20.8]}
47... Qe2 {[%clk 0:00:07.3]} 48. Qb7 {[%clk 0:00:15]} 48... Bf5 {[%clk
0:00:06.9]} 49. Qxa7 {[%clk 0:00:12.3]} 49... Bxd3 {[%clk 0:00:06.6]} 50. Qxb6
{[%clk 0:00:12.4]} 50... Qxc2+ {[%clk 0:00:05.6]} 51. Ka3 {[%clk 0:00:12.9]}
51... Qc1+ {[%clk 0:00:05.6]} 52. Bb2 {[%clk 0:00:13.5]} 52... Qd1 {[%clk
0:00:05.2]} 53. Qd4 {[%clk 0:00:12.5]} 53... Qe2 {[%clk 0:00:05.3]} 54. b6
{[%clk 0:00:12.2]} 54... Be4 {[%clk 0:00:04.4]} 55. Qc4 {[%clk 0:00:11.2]} 55...
Qf3 {[%clk 0:00:02.6]} 56. Kb4 {[%clk 0:00:10.7]} 56... Bd5 {[%clk 0:00:02.7]}
57. Qc3 {[%clk 0:00:10.8]} 57... Qe4+ {[%clk 0:00:02.5]} 58. Qd4 {[%clk
0:00:11.4]} 58... Qe6 {[%clk 0:00:02.4]} 59. Qd3+ {[%clk 0:00:10.6]} 59... Be4
{[%clk 0:00:02.6]} 60. Qc4 {[%clk 0:00:10.6]} 60... Bd5 {[%clk 0:00:03.2]} 61.
Qd3+ {[%clk 0:00:10.4]} 61... Be4 {[%clk 0:00:03.7]} 62. Qe3 {[%clk 0:00:10.4]}
62... Qc6 {[%clk 0:00:03.3]} 63. Bc3 {[%clk 0:00:09.4]} 63... Bd5 {[%clk
0:00:03.7]} 64. Qc5 {[%clk 0:00:09.7]} 64... Qb7 {[%clk 0:00:03.4]} 65. Qc7
{[%clk 0:00:09.6]} 65... Qa8 {[%clk 0:00:03.8]} 66. Qa7 {[%clk 0:00:09.2]} 66...
Qc6 {[%clk 0:00:04.1]} 67. Qc7 {[%clk 0:00:09.4]} 67... Qa8 {[%clk 0:00:04.4]}
68. Bd4 {[%clk 0:00:09.9]} 68... Bc6 {[%clk 0:00:04.7]} 69. Qd6 {[%clk
0:00:09.8]} 69... Qb7 {[%clk 0:00:05]} 70. Qc5 {[%clk 0:00:10.4]} 70... Qd7
{[%clk 0:00:04.2]} 71. Qxh5+ {[%clk 0:00:10.6]} 71... Kg8 {[%clk 0:00:04.2]} 72.
Qc5 {[%clk 0:00:11.5]} 72... Kh7 {[%clk 0:00:04.7]} 73. g4 {[%clk 0:00:10.3]}
73... Kg8 {[%clk 0:00:03.4]} 74. g5 {[%clk 0:00:10.7]} 74... fxg5 {[%clk
0:00:03.2]} 75. fxg5 {[%clk 0:00:11.6]} 75... Kh7 {[%clk 0:00:03.5]} 76. h5
{[%clk 0:00:12.3]} 76... g6 {[%clk 0:00:03.8]} 77. h6 {[%clk 0:00:11.8]} 77...
Kg8 {[%clk 0:00:03.3]} 78. Qe5 {[%clk 0:00:11.9]} 78... Kf7 {[%clk 0:00:03.3]}
79. Qg7+ {[%clk 0:00:12.1]} 79... Ke6 {[%clk 0:00:04.2]} 80. Qxd7+ {[%clk
0:00:12.6]} 80... Kxd7 {[%clk 0:00:03.7]} 81. h7 {[%clk 0:00:13.5]} 81... Kd6
{[%clk 0:00:04.1]} 82. h8=Q {[%clk 0:00:14.3]} 82... Kd5 {[%clk 0:00:04.9]} 83.
Qe5# {[%clk 0:00:14.9]} 1-0

[Event "Early-Titled-Tuesday-Blitz-September-05-2023"]
[Site "Chess.com"]
[Date "2023.09.05"]
[Round "2"]
[White "kushbhagat2009"]
[Black "ContrVersia"]
[Result "1/2-1/2"]
[WhiteElo "2628"]
[BlackElo "2929"]
[TimeControl "180+1"]
[EndTime "8:19:05 PDT"]
[Termination "Game drawn by repetition"]

1. d4 {[%clk 0:02:59.4]} 1... Nf6 {[%clk 0:02:59.9]} 2. Bf4 {[%clk 0:02:59.1]}
2... e6 {[%clk 0:03:00.1]} 3. e3 {[%clk 0:02:58.2]} 3... c5 {[%clk 0:03:00.5]}
4. Nf3 {[%clk 0:02:58.2]} 4... cxd4 {[%clk 0:02:58.6]} 5. exd4 {[%clk
0:02:58.4]} 5... b6 {[%clk 0:02:57.5]} 6. c3 {[%clk 0:02:58.1]} 6... Be7 {[%clk
0:02:56.6]} 7. Nbd2 {[%clk 0:02:58.6]} 7... O-O {[%clk 0:02:56.8]} 8. Bd3 {[%clk
0:02:58.9]} 8... Ba6 {[%clk 0:02:56.8]} 9. Bxa6 {[%clk 0:02:58.4]} 9... Nxa6
{[%clk 0:02:57.7]} 10. O-O {[%clk 0:02:59]} 10... d6 {[%clk 0:02:57.9]} 11. Re1
{[%clk 0:02:58.3]} 11... h6 {[%clk 0:02:58]} 12. h3 {[%clk 0:02:58.8]} 12... Qd7
{[%clk 0:02:57.3]} 13. Ne4 {[%clk 0:02:59.3]} 13... Nd5 {[%clk 0:02:57]} 14. Bh2
{[%clk 0:02:59.1]} 14... Rfc8 {[%clk 0:02:55.8]} 15. a4 {[%clk 0:02:59.3]} 15...
Qc6 {[%clk 0:02:54]} 16. Nfd2 {[%clk 0:02:52.9]} 16... Nac7 {[%clk 0:02:52.2]}
17. Qf3 {[%clk 0:02:49.6]} 17... Ne8 {[%clk 0:02:44.1]} 18. Ng3 {[%clk
0:02:34.6]} 18... Bf8 {[%clk 0:02:38.5]} 19. Ndf1 {[%clk 0:02:23.9]} 19... a6
{[%clk 0:02:36.5]} 20. Ne3 {[%clk 0:02:20.6]} 20... Nxe3 {[%clk 0:02:27.3]} 21.
Qxc6 {[%clk 0:02:17]} 21... Rxc6 {[%clk 0:02:28.2]} 22. Rxe3 {[%clk 0:02:08.2]}
22... Rcc8 {[%clk 0:02:23.5]} 23. Ne4 {[%clk 0:02:07.7]} 23... b5 {[%clk
0:02:16.1]} 24. axb5 {[%clk 0:02:05.4]} 24... axb5 {[%clk 0:02:17]} 25. Ree1
{[%clk 0:02:05.9]} 25... f5 {[%clk 0:02:16.7]} 26. Nd2 {[%clk 0:02:04.1]} 26...
Kf7 {[%clk 0:02:16.3]} 27. Nb3 {[%clk 0:01:59.7]} 27... Nf6 {[%clk 0:02:11.4]}
28. f3 {[%clk 0:01:58.1]} 28... Nd5 {[%clk 0:02:10.5]} 29. Rxa8 {[%clk
0:01:38.8]} 29... Rxa8 {[%clk 0:02:10.2]} 30. Ra1 {[%clk 0:01:39.5]} 30... Rxa1+
{[%clk 0:01:52.4]} 31. Nxa1 {[%clk 0:01:40.4]} 31... Nb6 {[%clk 0:01:53.2]} 32.
b3 {[%clk 0:01:25.7]} 32... Nd5 {[%clk 0:01:49.2]} 33. c4 {[%clk 0:01:24.1]}
33... bxc4 {[%clk 0:01:49.5]} 34. bxc4 {[%clk 0:01:23.1]} 34... Ne3 {[%clk
0:01:50.1]} 35. c5 {[%clk 0:00:45.7]} 35... dxc5 {[%clk 0:01:51]} 36. dxc5
{[%clk 0:00:46.6]} 36... Bxc5 {[%clk 0:01:51.1]} 37. Nb3 {[%clk 0:00:47.3]}
37... Bb6 {[%clk 0:01:50.3]} 38. Kh1 {[%clk 0:00:47.7]} 38... Nc4 {[%clk
0:01:37.3]} 39. g4 {[%clk 0:00:40.5]} 39... Kf6 {[%clk 0:01:27.9]} 40. Kg2
{[%clk 0:00:36.6]} 40... Ne3+ {[%clk 0:01:27.1]} 41. Kh1 {[%clk 0:00:32.7]}
41... h5 {[%clk 0:01:22.9]} 42. gxh5 {[%clk 0:00:25.2]} 42... Nd5 {[%clk
0:01:20.2]} 43. Nd2 {[%clk 0:00:08.2]} 43... Kg5 {[%clk 0:01:19.7]} 44. Nc4
{[%clk 0:00:08.6]} 44... Bd4 {[%clk 0:01:20.1]} 45. Kg2 {[%clk 0:00:06.4]} 45...
Kxh5 {[%clk 0:01:13.1]} 46. Nd6 {[%clk 0:00:06.9]} 46... Ne3+ {[%clk 0:01:05.8]}
47. Kh1 {[%clk 0:00:06.9]} 47... Kh4 {[%clk 0:01:03.1]} 48. Nb5 {[%clk
0:00:05.6]} 48... Bc5 {[%clk 0:01:03.1]} 49. Be5 {[%clk 0:00:05.8]} 49... Kxh3
{[%clk 0:00:30.9]} 50. Bxg7 {[%clk 0:00:05.6]} 50... Kg3 {[%clk 0:00:31.4]} 51.
Nc7 {[%clk 0:00:04.4]} 51... Kxf3 {[%clk 0:00:16]} 52. Nxe6 {[%clk 0:00:04.5]}
52... Bd6 {[%clk 0:00:16]} 53. Nd4+ {[%clk 0:00:03.6]} 53... Kf2 {[%clk
0:00:16.2]} 54. Nxf5 {[%clk 0:00:03.3]} 54... Nxf5 {[%clk 0:00:15.9]} 55. Bf6
{[%clk 0:00:02.2]} 55... Ng3+ {[%clk 0:00:13.9]} 56. Kh2 {[%clk 0:00:02.8]}
56... Ne4+ {[%clk 0:00:14.3]} 57. Kh1 {[%clk 0:00:03.4]} 57... Kf3 {[%clk
0:00:13]} 58. Bd4 {[%clk 0:00:03.3]} 58... Ng3+ {[%clk 0:00:12.7]} 59. Kg1
{[%clk 0:00:03]} 59... Ne2+ {[%clk 0:00:12.8]} 60. Kf1 {[%clk 0:00:03.3]} 60...
Nxd4 {[%clk 0:00:13]} 61. Kg1 {[%clk 0:00:04.2]} 61... Ne2+ {[%clk 0:00:07.6]}
62. Kh1 {[%clk 0:00:04.5]} 62... Ng3+ {[%clk 0:00:05.2]} 63. Kg1 {[%clk
0:00:04.7]} 63... Bf4 {[%clk 0:00:03.5]} 64. Kh2 {[%clk 0:00:05.6]} 64... Be3
{[%clk 0:00:04]} 65. Kh3 {[%clk 0:00:05.7]} 65... Bg1 {[%clk 0:00:04.4]} 66. Kh4
{[%clk 0:00:06.3]} 66... Ne4 {[%clk 0:00:04]} 67. Kh3 {[%clk 0:00:06]} 67... Ng3
{[%clk 0:00:03.1]} 68. Kh4 {[%clk 0:00:06.6]} 68... Be3 {[%clk 0:00:02.7]} 69.
Kh3 {[%clk 0:00:06.6]} 69... Bc5 {[%clk 0:00:02.2]} 70. Kh2 {[%clk 0:00:05.8]}
70... Bb6 {[%clk 0:00:02.1]} 71. Kh3 {[%clk 0:00:05.9]} 71... Bg1 {[%clk
0:00:03]} 1/2-1/2

[Event "Early-Titled-Tuesday-Blitz-September-05-2023"]
[Site "Chess.com"]
[Date "2023.09.05"]
[Round "2"]
[White "Sadykov_Ramil"]
[Black "BigPiano"]
[Result "0-1"]
[WhiteElo "2584"]
[BlackElo "2429"]
[TimeControl "180+1"]
[EndTime "8:19:05 PDT"]
[Termination "BigPiano won by resignation"]

1. d4 {[%clk 0:02:54.6]} 1... Nf6 {[%clk 0:02:59.8]} 2. Nc3 {[%clk 0:02:48.8]}
2... d5 {[%clk 0:02:59.5]} 3. Bf4 {[%clk 0:02:48.3]} 3... a6 {[%clk 0:03:00]} 4.
e3 {[%clk 0:02:48.6]} 4... e6 {[%clk 0:02:58.5]} 5. g4 {[%clk 0:02:47.2]} 5...
h6 {[%clk 0:02:53.1]} 6. Qf3 {[%clk 0:02:39.1]} 6... Bd6 {[%clk 0:02:48.7]} 7.
h4 {[%clk 0:02:35.4]} 7... Bxf4 {[%clk 0:02:45.5]} 8. Qxf4 {[%clk 0:02:36.3]}
8... Qd6 {[%clk 0:02:44.9]} 9. Qxd6 {[%clk 0:02:23.1]} 9... cxd6 {[%clk
0:02:45.8]} 10. f3 {[%clk 0:02:23.8]} 10... Nc6 {[%clk 0:02:43.6]} 11. a4 {[%clk
0:02:18.8]} 11... e5 {[%clk 0:02:32.1]} 12. Nce2 {[%clk 0:02:15.2]} 12... e4
{[%clk 0:02:30.5]} 13. Kd2 {[%clk 0:01:45.3]} 13... exf3 {[%clk 0:02:28.8]} 14.
Nxf3 {[%clk 0:01:46.2]} 14... Bxg4 {[%clk 0:02:28.7]} 15. Bg2 {[%clk 0:01:41.4]}
15... Rc8 {[%clk 0:02:24.6]} 16. Nc3 {[%clk 0:01:28.4]} 16... Ne4+ {[%clk
0:02:10.6]} 17. Nxe4 {[%clk 0:01:25.5]} 17... dxe4 {[%clk 0:02:11.5]} 18. Nh2
{[%clk 0:01:26.1]} 18... Bf5 {[%clk 0:02:08.3]} 19. Raf1 {[%clk 0:01:22]} 19...
Bh7 {[%clk 0:01:57.7]} 20. Rhg1 {[%clk 0:01:17.5]} 20... O-O {[%clk 0:01:45.6]}
21. Bh3 {[%clk 0:01:13.7]} 21... Rc7 {[%clk 0:01:39]} 22. Ng4 {[%clk 0:01:12.9]}
22... Kh8 {[%clk 0:01:38.5]} 23. h5 {[%clk 0:01:08.2]} 23... Nb4 {[%clk
0:01:09.2]} 24. c3 {[%clk 0:00:58.4]} 24... Nd5 {[%clk 0:01:09.1]} 25. Rg3
{[%clk 0:00:45.6]} 25... f5 {[%clk 0:01:03.2]} 26. Nh2 {[%clk 0:00:40.4]} 26...
f4 {[%clk 0:00:49.8]} 27. exf4 {[%clk 0:00:39.4]} 27... Rxf4 {[%clk 0:00:50.5]}
28. Rxf4 {[%clk 0:00:31.4]} 28... Nxf4 {[%clk 0:00:51.4]} 29. Nf1 {[%clk
0:00:30.6]} 29... Rf7 {[%clk 0:00:50.1]} 30. Ne3 {[%clk 0:00:27.1]} 30... Nxh5
{[%clk 0:00:47]} 31. Rg2 {[%clk 0:00:20.8]} 31... g5 {[%clk 0:00:35.8]} 32. Be6
{[%clk 0:00:18.1]} 32... Rf8 {[%clk 0:00:34.5]} 33. Bd5 {[%clk 0:00:15.9]} 33...
b6 {[%clk 0:00:29.7]} 34. Rh2 {[%clk 0:00:13.3]} 34... Bg6 {[%clk 0:00:28.2]}
35. Bxe4 {[%clk 0:00:12.1]} 35... Bxe4 {[%clk 0:00:26.8]} 36. Rxh5 {[%clk
0:00:12.3]} 36... Kg7 {[%clk 0:00:25.6]} 37. Rh2 {[%clk 0:00:10]} 37... h5
{[%clk 0:00:23.7]} 38. Rxh5 {[%clk 0:00:08.9]} 38... Kg6 {[%clk 0:00:22.7]} 39.
Rh2 {[%clk 0:00:08.7]} 39... b5 {[%clk 0:00:21.5]} 40. a5 {[%clk 0:00:07.2]}
40... Rf4 {[%clk 0:00:17.3]} 41. b3 {[%clk 0:00:05]} 41... Rh4 {[%clk
0:00:16.5]} 42. Rf2 {[%clk 0:00:03.7]} 42... Rf4 {[%clk 0:00:15.4]} 43. Re2
{[%clk 0:00:04.1]} 43... Bf3 {[%clk 0:00:14.3]} 44. Re1 {[%clk 0:00:03.8]} 44...
g4 {[%clk 0:00:14.7]} 45. Kd3 {[%clk 0:00:03.5]} 45... Kg5 {[%clk 0:00:13.9]}
46. Rg1 {[%clk 0:00:03.4]} 46... Be4+ {[%clk 0:00:13]} 47. Ke2 {[%clk
0:00:03.4]} 47... Bf5 {[%clk 0:00:10.7]} 48. c4 {[%clk 0:00:03.1]} 48... bxc4
{[%clk 0:00:10.6]} 49. Nxc4 {[%clk 0:00:03.5]} 49... Rxd4 {[%clk 0:00:10.2]} 50.
Ke3 {[%clk 0:00:03.7]} 50... Rd3+ {[%clk 0:00:09.4]} 51. Ke2 {[%clk 0:00:04.2]}
51... Rxb3 {[%clk 0:00:09.6]} 52. Nxd6 {[%clk 0:00:04.2]} 52... Rb2+ {[%clk
0:00:07.7]} 53. Ke3 {[%clk 0:00:04.5]} 53... Rb3+ {[%clk 0:00:08.1]} 54. Kd4
{[%clk 0:00:04.6]} 54... Rb4+ {[%clk 0:00:08.1]} 55. Kc5 {[%clk 0:00:04.9]}
55... Rb2 {[%clk 0:00:05]} 56. Nxf5 {[%clk 0:00:04.5]} 56... Kxf5 {[%clk
0:00:05.9]} 57. Kc4 {[%clk 0:00:03.5]} 57... Kf4 {[%clk 0:00:05.8]} 58. Kc3
{[%clk 0:00:03.1]} 58... Rb5 {[%clk 0:00:05.8]} 59. Ra1 {[%clk 0:00:03.5]} 59...
g3 {[%clk 0:00:05.1]} 60. Ra4+ {[%clk 0:00:04]} 60... Kf3 {[%clk 0:00:05.1]} 61.
Kd2 {[%clk 0:00:04]} 61... Re5 {[%clk 0:00:03.1]} 62. Rb4 {[%clk 0:00:03.3]}
62... g2 {[%clk 0:00:02.7]} 63. Rb3+ {[%clk 0:00:02.6]} 63... Kf2 {[%clk
0:00:03.1]} 64. Rb8 {[%clk 0:00:02.9]} 64... g1=Q {[%clk 0:00:03]} 65. Rf8+
{[%clk 0:00:03.8]} 65... Kg2 {[%clk 0:00:03.6]} 66. Rg8+ {[%clk 0:00:04.7]}
66... Kf1 {[%clk 0:00:03.7]} 67. Rf8+ {[%clk 0:00:04.9]} 67... Qf2+ {[%clk
0:00:04.2]} 68. Rxf2+ {[%clk 0:00:05.5]} 68... Kxf2 {[%clk 0:00:05.1]} 69. Kd3
{[%clk 0:00:06]} 69... Rxa5 {[%clk 0:00:06]} 70. Kc3 {[%clk 0:00:06.7]} 70...
Rb5 {[%clk 0:00:06.9]} 71. Kc4 {[%clk 0:00:07.1]} 71... Rb8 {[%clk 0:00:07.8]}
72. Kc5 {[%clk 0:00:07.3]} 72... a5 {[%clk 0:00:08.7]} 73. Kc6 {[%clk
0:00:08.2]} 73... a4 {[%clk 0:00:08.8]} 74. Kc7 {[%clk 0:00:09.1]} 74... Rb1
{[%clk 0:00:09.2]} 75. Kd6 {[%clk 0:00:10]} 75... a3 {[%clk 0:00:10.1]} 76. Kc6
{[%clk 0:00:10.9]} 76... a2 {[%clk 0:00:11]} 77. Kd7 {[%clk 0:00:11.8]} 77...
a1=Q {[%clk 0:00:11.9]} 78. Ke6 {[%clk 0:00:12.7]} 78... Qb2 {[%clk 0:00:11.5]}
0-1